lending/lending_fUSD_20250411
["ID","MTS","AMOUNT","RATE_DAILY","PERIOD"]
[357699696,1744351837973,-744.1298,0.000199,2]
[357699697,1744351837983,-191.42473531,0.000199,3]
[357699698,1744351837992,-1317.393,0.000199,2]
[357699699,1744351838002,-1500.0,0.000199,2]
[357699700,1744351838011,-1335.84466867,0.000199,2]
[357699701,1744351838021,-286571.0386,0.000199,2]
[357699702,1744351838031,-2500.0,0.000199,2]
[357699703,1744351838040,-150.0,0.00019913,2]
[357699704,1744351838049,-150.0,0.00019917,2]
[357699705,1744351838059,-150.0,0.00019918,2]
[357699706,1744351838069,-150.0,0.0001993,2]
[357699707,1744351838079,-150.0,0.00019931,2]
[357699708,1744351838090,-150.0,0.00019936,2]
[357699709,1744351838100,-150.0,0.00019942,2]
[357699710,1744351838110,-1000.0,0.00019945,2]
[357699711,1744351838119,-1000.0,0.00019945,2]
[357699712,1744351838129,-1000.0,0.00019945,2]
[357699713,1744351838138,-1000.0,0.00019945,2]
[357699714,1744351838148,-150.0,0.00019947,2]
[357699715,1744351838158,-150.0,0.0001995,2]
[357699716,1744351838168,-150.0,0.00019952,2]
[357699717,1744351838178,-150.0,0.00019954,2]
[357699718,1744351838187,-150.0,0.00019958,2]
[357699719,1744351838197,-150.0,0.00019959,2]
[357699720,1744351838206,-150.0,0.00019962,2]
[357699721,1744351838216,-150.0,0.00019964,2]
[357699722,1744351838226,-150.0,0.00019966,2]
[357699723,1744351838236,-150.0,0.00019976,2]
[357699724,1744351838245,-150.0,0.00019983,2]
[357699725,1744351838255,-150.0,0.00019985,2]
[357699726,1744351838264,-334.6112791,0.00019986,2]
[357699727,1744351838274,-308.467696,0.00019986,2]
[357699728,1744351838283,-1073.924168,0.00019986,2]
[357699729,1744351838293,-1376.8220187,0.00019986,2]
[357699730,1744351838302,-597.5645474,0.00019986,2]
[357699731,1744351838311,-417.5592688,0.00019986,2]
[357699732,1744351838321,-5722.1216369,0.00019986,2]
[357699733,1744351838330,-518.5543664,0.00019986,2]
[357699734,1744351838340,-1296.2836766,0.00019986,2]
[357699735,1744351838349,-1000.0,0.00019999,2]
[357699736,1744351838359,-1000.0,0.00019999,2]
[357699737,1744351838368,-1000.0,0.00019999,2]
[357699738,1744351838377,-1000.0,0.00019999,2]
[357699740,1744351838387,-1000.0,0.00019999,2]
[357699742,1744351838397,-1000.0,0.00019999,2]
[357699744,1744351838406,-1000.0,0.00019999,2]
[357699746,1744351838415,-1000.0,0.00019999,2]
[357699748,1744351838424,-1000.0,0.00019999,2]
[357699750,1744351838434,-1000.0,0.00019999,2]
[357699752,1744351838443,-1000.0,0.00019999,2]
[357699754,1744351838453,-1000.0,0.00019999,2]
[357699756,1744351838462,-1000.0,0.00019999,2]
[357699758,1744351838471,-1000.0,0.00019999,2]
[357699760,1744351838481,-1000.0,0.00019999,2]
[357699762,1744351838491,-498.93553694,0.00019999,2]
[357699764,1744351838500,-218.9146738,0.00019999,2]
[357699766,1744351838509,-842507.05294756,0.0002,2]
[357699768,1744351838518,-400.48174,0.0002,2]
[357699770,1744351838527,-400.000006,0.0002,3]
[357699772,1744351838536,-1000.0,0.0002,2]
[357699774,1744351838547,-1000.0,0.0002,2]
[357699775,1744351838556,-1000.0,0.0002,2]
[357699776,1744351838565,-1000.0,0.0002,2]
[357699777,1744351838574,-1000.0,0.0002,2]
[357699778,1744351838583,-1000.0,0.0002,2]
[357699779,1744351838593,-234.0,0.0002,2]
[357699780,1744351838603,-584.4423,0.0002,2]
[357699781,1744351838612,-151.9,0.0002,2]
[357699782,1744351838621,-151.9,0.0002,2]
[357699783,1744351838630,-151.9,0.0002,2]
[357699784,1744351838639,-166.66,0.00020011,2]
[357699785,1744351838649,-150.69,0.00020012,2]
[357699786,1744351838658,-16790.79443967,0.00020088,2]
[357699787,1744351838667,-250.0,0.00020329,2]
[357699788,1744351838676,-151.9,0.0002035,2]
[357699789,1744351838685,-51383.68922244,0.0002036,2]
[357699790,1744351838694,-250.0,0.00020382,2]
[357699791,1744351838703,-250.0,0.00020485,2]
[357699792,1744351838713,-160.42925407,0.00020556,2]
[357699793,1744351838726,-166.66,0.00020651,2]
[357699794,1744351838735,-500.0,0.00020731,2]
[357699795,1744351838744,-500.0,0.00020731,2]
[357699796,1744351838753,-1000.0,0.00020818,2]
[357699797,1744351838763,-1000.0,0.000209,2]
[357699798,1744351838772,-200.0,0.00020973,2]
[357699799,1744351838781,-161.55,0.00020975,2]
[357699800,1744351838791,-308.22,0.00021,2]
[357699801,1744351838800,-300.0,0.00021,2]
[357699802,1744351838810,-2000.0,0.00021013,2]
[357699803,1744351838819,-764.37460741,0.00021021,2]
[357699804,1744351838829,-1390.36,0.00021202,2]
[357699805,1744351838838,-500.0,0.00021225,2]
[357699806,1744351838848,-4680.54863597,0.00021275,2]
[357699807,1744351838858,-166.66,0.0002129,2]
[357699808,1744351838868,-150.69,0.00021382,2]
[357699809,1744351838877,-1335.84466866,0.00021392,2]
[357699810,1744351838887,-424.63004411,0.00021518,2]
[357699811,1744351838896,-150.99,0.00021757,2]
[357699812,1744351838906,-1429.15,0.00021757,2]
[357699813,1744351838915,-499.99,0.00021757,2]
[357699814,1744351838924,-282.79,0.00021757,2]
[357699815,1744351838934,-285.77,0.00021917,2]
[357699816,1744351838943,-1533.94,0.00021918,2]
[357699817,1744351838953,-300.0,0.00021918,2]
[357699818,1744351838963,-166.66,0.0002193,2]
[357699819,1744351838972,-303.93,0.00022,2]
[357699820,1744351838981,-171.56868897,0.0002209,2]
[357699821,1744351838990,-2000.0,0.00022189,4]
[357699822,1744351838999,-1297.113,0.0002219,2]
[357699823,1744351839009,-575.0,0.0002219,2]
[357699824,1744351839018,-2056.8,0.0002219,2]
[357699825,1744351839028,-1333.699,0.0002219,2]
[357699826,1744351839038,-913.083,0.0002219,2]
[357699827,1744351839047,-796.0,0.0002219,2]
[357699828,1744351839057,-1453.869,0.0002219,2]
[357699829,1744351839067,-1286.801,0.0002219,2]
[357699830,1744351839076,-551.411,0.0002219,2]
[357699831,1744351839086,-4145.0,0.0002219,2]
[357699832,1744351839095,-161.55,0.00022473,2]
[357699833,1744351839105,-166.66,0.00022569,2]
[357699834,1744351839116,-4680.54863597,0.00022747,2]
[357699835,1744351839126,-3961.0,0.00022862,2]
[357699836,1744351839136,-152.0,0.00022862,2]
[357699837,1744351839146,-853.0,0.00022862,2]
[357699838,1744351839155,-1121.0,0.00022862,2]
[357699839,1744351839165,-1335.84466866,0.00022883,2]
[357699840,1744351839174,-200.0,0.00023,2]
[357699841,1744351839184,-350.0,0.00023,2]
[357699842,1744351839195,-500.0,0.00023096,2]
[357699843,1744351839209,-1000.0,0.00023222,2]
[357699844,1744351839220,-285.77,0.00023287,2]
[357699845,1744351839229,-1390.36,0.00023466,2]
[357699846,1744351839239,-260.67,0.00023836,2]
[357699847,1744351839249,-161.55,0.00023971,2]
[357699848,1744351839260,-4680.54863597,0.00024219,2]
[357699849,1744351839270,-1335.84466866,0.00024375,2]
[357699850,1744351839279,-169.47,0.00024468,2]
[357699851,1744351839289,-285.77,0.00024657,2]
[357699852,1744351839299,-1000.0,0.00024658,2]
[357699853,1744351839310,-190.02,0.00024658,2]
[357699854,1744351839321,-156.48486791,0.000247,2]
[357699855,1744351839330,-2000.0,0.00024734,4]
[357699856,1744351839341,-151.9,0.0002479,2]
[357699857,1744351839351,-151.9,0.0002479,2]
[357699858,1744351839360,-670.74437506,0.00024799,2]
[357699859,1744351839370,-156.185438,0.000248,7]
[357699860,1744351839379,-151.0,0.000248,7]
[357699861,1744351839388,-152.144923,0.000248,7]
[357699862,1744351839398,-151.0,0.000248,7]
[357699863,1744351839407,-265956.8829687,0.000248,2]
[357699864,1744351840074,-41052.26299106,0.000248,2]
[357699865,1744351840183,-40000.0,0.000248,2]
[357699866,1744351840195,-6118.44817081,0.000248,2]
[357699867,1744351840221,-2683.6833661,0.000248,2]
[357699868,1744351840446,-59199.78360633,0.000248,2]
[357699870,1744351840455,-151.200285,0.000249,7]
[357699871,1744351840465,-114612.096967,0.000249,2]
[357699872,1744351840474,-151.9,0.0002499,2]
[357699873,1744351840484,-235.47131747,0.00025,2]
[357699874,1744351840494,-161.11508879,0.00025,2]
[357699875,1744351840503,-100539.04266927,0.00025,2]
[357699876,1744351840513,-5000.0,0.00025,7]
[357699877,1744351840523,-998.0,0.00025,2]
[357699878,1744351840533,-758.28051863,0.00025,2]
[357699879,1744351840543,-400.0,0.00025,2]
[357699880,1744351840552,-151.0,0.00025,7]
[357699881,1744351840561,-159.285862,0.00025,7]
[357699883,1744351840571,-151.0,0.00025,7]
[357699885,1744351840580,-151.0,0.00025,7]
[357699886,1744351840589,-151.0,0.00025,7]
[357699887,1744351840599,-151.851974,0.00025,7]
[357699888,1744351840608,-151.0,0.00025,7]
[357699889,1744351840618,-194.324078,0.00025,7]
[357699890,1744351840627,-194.324078,0.00025,7]
[357699891,1744351840636,-583.700419,0.00025,7]
[357699892,1744351840645,-583.700419,0.00025,7]
[357699893,1744351840654,-154.535637,0.00025,7]
[357699894,1744351840664,-154.535637,0.00025,7]
[357699895,1744351840673,-3254.27749077,0.000251,2]
[357699896,1744351840683,-200.0,0.000251,2]
[357699897,1744351840692,-1287.0,0.0002519,2]
[357699898,1744351840701,-575.0,0.0002519,2]
[357699899,1744351840710,-2045.0,0.0002519,2]
[357699900,1744351840723,-1327.0,0.0002519,2]
[357699901,1744351840732,-907.0,0.0002519,2]
[357699902,1744351840741,-791.0,0.0002519,2]
[357699903,1744351840750,-1437.0,0.0002519,2]
[357699904,1744351840759,-1278.0,0.0002519,2]
[357699905,1744351840769,-544.0,0.0002519,2]
[357699906,1744351840778,-4145.0,0.0002519,2]
[357699907,1744351840787,-282.4454538,0.000253,10]
[357699908,1744351840799,-161.55,0.00025469,2]
[357699909,1744351840809,-1000.0,0.00025544,2]
[357699910,1744351840818,-4680.54863597,0.00025691,2]
[357699911,1744351840827,-1390.36,0.0002573,2]
[357699912,1744351840836,-2038.413,0.00025862,2]
[357699913,1744351840846,-152.0,0.00025862,2]
[357699914,1744351840854,-385.408,0.00025862,2]
[357699915,1744351840863,-1121.0,0.00025862,2]
[357699916,1744351840872,-1335.84466866,0.00025866,2]
[357699917,1744351840882,-577.53336614,0.0002599,2]
[357699918,1744351840891,-4350.6695277,0.00026,2]
[357699919,1744351840900,-3057.73512888,0.00026,2]
[357699920,1744351840909,-285.77,0.00026027,2]
[357699921,1744351840919,-203.14,0.00026027,2]
[357699922,1744351840928,-1000.0,0.0002621,2]
[357699923,1744351840937,-25706.33666167,0.000264,2]
[357699924,1744351840946,-1097.19,0.00026444,2]
[357699925,1744351840955,-1108.78042851,0.00026704,2]
[357699926,1744351840965,-151.77,0.00026849,2]
[357699927,1744351840974,-845.99,0.00026849,2]
[357699928,1744351840983,-161.55,0.00026967,2]
[357699929,1744351840993,-450.0,0.00027,2]
[357699930,1744351841002,-207.72,0.000271,2]
[357699931,1744351841011,-156.48486787,0.00027137,2]
[357699932,1744351841020,-4680.54863597,0.00027162,2]
[357699933,1744351841030,-2000.0,0.00027278,4]
[357699934,1744351841039,-1335.84466866,0.00027358,2]
[357699935,1744351841049,-153.073968,0.00027397,7]
[357699936,1744351841058,-500.0,0.00027397,2]
[357699937,1744351841068,-500.0,0.00027397,2]
[357699938,1744351841078,-993.97455656,0.00027397,2]
[357699939,1744351841087,-285.77,0.00027397,2]
[357699940,1744351841097,-500.0,0.00027397,2]
[357699941,1744351841106,-500.0,0.00027397,2]
[357699942,1744351841116,-550.93895673,0.00027397,2]
[357699943,1744351841125,-500.0,0.00027397,2]
[357699944,1744351841135,-500.0,0.00027397,2]
[357699945,1744351841145,-500.0,0.00027397,2]
[357699946,1744351841154,-500.0,0.00027397,2]
[357699947,1744351841164,-500.0,0.00027397,2]
[357699948,1744351841173,-500.0,0.00027397,2]
[357699949,1744351841182,-500.0,0.00027397,2]
[357699950,1744351841192,-500.0,0.00027397,2]
[357699951,1744351841201,-500.0,0.00027397,2]
[357699952,1744351841210,-500.0,0.00027397,2]
[357699953,1744351841220,-500.0,0.00027397,2]
[357699954,1744351841229,-500.0,0.00027397,2]
[357699955,1744351841238,-500.0,0.00027397,2]
[357699956,1744351841247,-500.0,0.00027397,2]
[357699957,1744351841257,-500.0,0.00027397,2]
[357699958,1744351841266,-500.0,0.00027397,2]
[357699959,1744351841276,-500.0,0.00027397,2]
[357699960,1744351841285,-500.0,0.00027397,2]
[357699961,1744351841294,-669.46,0.00027397,2]
[357699962,1744351841304,-460.81670429,0.000274,2]
[357699963,1744351841313,-500.0,0.00027433,5]
[357699964,1744351841322,-502.0197719,0.00027433,5]
[357699965,1744351841332,-500.0,0.00027433,5]
[357699966,1744351841341,-500.58872924,0.00027433,5]
[357699967,1744351841350,-154.21914819,0.00027433,5]
[357699968,1744351841359,-1000.0,0.00027866,2]
[357699969,1744351841368,-1390.36,0.00027994,2]
[357699970,1744351841377,-500.0,0.00028137,2]
[357699971,1744351841386,-1287.0,0.0002819,2]
[357699972,1744351841395,-575.0,0.0002819,2]
[357699973,1744351841404,-2769.925,0.0002819,2]
[357699974,1744351841414,-161.55,0.00028466,2]
[357699975,1744351841423,-4680.54863597,0.00028634,2]
[357699976,1744351841433,-285.77,0.00028767,2]
[357699977,1744351841443,-669.46,0.00028767,2]
[357699978,1744351841453,-1335.84466866,0.00028849,2]
[357699979,1744351841463,-152.0,0.00028862,2]
[357699980,1744351841472,-721.709,0.00028862,2]
[357699981,1744351841482,-500.0,0.00029,2]
[357699982,1744351841491,-318.56719676,0.00029133,5]
[357699983,1744351841501,-169.47,0.00029362,2]
[357699984,1744351841511,-156.48486787,0.00029574,2]
[357699985,1744351841520,-2000.0,0.00029823,4]
[357699986,1744351841530,-55920.8552675,0.0002988,2]
[357699987,1744351841539,-161.55,0.00029964,2]
[357699988,1744351841549,-151.9,0.0002999,2]
[357699989,1744351841558,-40000.0,0.0003,2]
[357699990,1744351841567,-2070.0,0.0003,3]
[357699991,1744351841576,-2019.83343007,0.0003,2]
[357699992,1744351841585,-85453.45912904,0.0003,4]
[357699993,1744351841596,-3000.0,0.0003,7]
[357699994,1744351841605,-207.72,0.0003,2]
[357699995,1744351841614,-209.625416,0.0003,7]
[357699996,1744351841623,-151.0,0.0003,7]
[357699997,1744351841632,-151.0,0.0003,7]
[357699998,1744351841641,-151.0,0.0003,7]
[357699999,1744351841651,-151.0,0.0003,7]
[357700000,1744351841660,-151.0,0.0003,7]
[357700001,1744351841669,-151.0,0.0003,7]
[357700002,1744351841679,-151.0,0.0003,7]
[357700003,1744351841688,-152.792015,0.0003,7]
[357700004,1744351841696,-151.0,0.0003,7]
[357700005,1744351841706,-206.800244,0.0003,7]
[357700006,1744351841715,-206.800244,0.0003,7]
[357700007,1744351841728,-152.569438,0.0003,7]
[357700008,1744351841737,-151.0,0.0003,7]
[357700009,1744351841746,-151.0,0.0003,7]
[357700010,1744351841755,-151.0,0.0003,7]
[357700011,1744351841765,-255.62006493,0.0003,7]
[357700012,1744351841774,-152.665481,0.0003,7]
[357700013,1744351841783,-152.094387,0.0003,7]
[357700014,1744351841792,-151.0,0.0003,7]
[357700015,1744351841802,-155.426635,0.0003,7]
[357700016,1744351841811,-153.120503,0.0003,7]
[357700017,1744351841820,-151.0,0.0003,7]
[357700018,1744351841829,-361.755845,0.0003,7]
[357700019,1744351841838,-361.755845,0.0003,7]
[357700020,1744351841848,-151.0,0.0003,7]
[357700021,1744351841857,-151.0,0.0003,7]
[357700022,1744351841866,-316.174602,0.0003,7]
[357700023,1744351841875,-151.0,0.0003,7]
[357700024,1744351841884,-128.19685525,0.0003,7]
[357700025,1744351841910,-187.97774675,0.0003,7]
[357700026,1744351841920,-151.0,0.0003,7]
[357700027,1744351841929,-151.0,0.0003,7]
[357700028,1744351841939,-113.3361577,0.0003,7]
[357700029,1744351841950,-37.6638423,0.0003,7]
[357700030,1744351841960,-153.759105,0.0003,7]
[357700031,1744351841970,-151.0,0.0003,7]
[357700032,1744351841979,-151.0,0.0003,7]
[357700033,1744351841988,-151.0,0.0003,7]
[357700034,1744351841998,-1934.300772,0.0003,7]
[357700035,1744351842007,-1934.300772,0.0003,7]
[357700036,1744351842015,-505.73091807,0.0003,7]
[357700037,1744351842039,-257.36943393,0.0003,7]
[357700038,1744351842048,-151.0,0.0003,7]
[357700039,1744351842058,-38.96720707,0.0003,7]
[357700040,1744351842069,-724.13314493,0.0003,7]
[357700041,1744351842078,-151.0,0.0003,7]
[357700042,1744351842088,-151.0,0.0003,7]
[357700043,1744351842097,-151.0,0.0003,7]
[357700044,1744351842107,-194.324078,0.0003,7]
[357700045,1744351842116,-194.324078,0.0003,7]
[357700046,1744351842126,-152.559348,0.0003,7]
[357700047,1744351842136,-583.700419,0.0003,7]
[357700048,1744351842145,-152.015809,0.0003,7]
[357700049,1744351842154,-583.700419,0.0003,7]
[357700050,1744351842163,-151.0,0.0003,7]
[357700051,1744351842172,-151.0,0.0003,7]
[357700052,1744351842358,-151.0,0.0003,7]
[357700053,1744351842368,-151.0,0.0003,7]
[357700054,1744351842377,-151.0,0.0003,7]
[357700055,1744351842386,-151.0,0.0003,7]
[357700056,1744351842396,-151.0,0.0003,7]
[357700057,1744351842405,-151.0,0.0003,7]
[357700058,1744351842414,-151.0,0.0003,7]
[357700059,1744351842423,-152.386328,0.0003,7]
[357700060,1744351842432,-151.0,0.0003,7]
[357700061,1744351842442,-151.0,0.0003,7]
[357700062,1744351842451,-153.536585,0.0003,7]
[357700063,1744351842461,-154.535637,0.0003,7]
[357700064,1744351842470,-154.535637,0.0003,7]
[357700065,1744351842478,-2935.48437658,0.00030106,2]
[357700066,1744351842533,-311.38152,0.00030106,2]
[357700067,1744351842544,-790.36113979,0.00030106,2]
[357700068,1744351842558,-643.3215996,0.00030106,2]
[357700069,1744351842567,-231.9320097,0.00030136,2]
[357700070,1744351842578,-53.8379903,0.00030136,2]
[357700071,1744351842587,-479.2282466,0.00030137,2]
[357700073,1744351842599,-190.2317534,0.00030137,2]
[357700074,1744351842608,-1309.7682466,0.00030258,2]
[357700082,1744351843200,-500.0,0.00019898,2]
[357700083,1744351843210,-250.0,0.00019898,2]
[357700084,1744351843220,-500.0,0.00019898,2]
[357700085,1744351843229,-500.0,0.00019898,2]
[357700086,1744351843239,-500.0,0.00019898,2]
[357700087,1744351843249,-80.5917534,0.00030258,2]
[357700088,1744351843258,-1335.84466866,0.00030341,2]
[357700089,1744351843268,-550.0,0.00031,2]
[357700090,1744351843277,-460.97,0.0003119,2]
[357700091,1744351843287,-10023.0,0.00031421,2]
[357700092,1744351843296,-582.248323,0.0003143,30]
[357700093,1744351843306,-161.55,0.00031462,2]
[357700094,1744351843315,-285.77,0.00031506,2]
[357700095,1744351843324,-483.29027824,0.00031507,2]
[357700099,1744351843510,-186.16972176,0.00031507,2]
[357700100,1744351843519,-4680.54863597,0.00031578,2]
[357700101,1744351843529,-205.0,0.0003164,2]
[357700102,1744351843538,-1335.84466866,0.00031832,2]
[357700103,1744351843548,-152.0,0.00031862,2]
[357700104,1744351843558,-156.48486787,0.00032012,2]
[357700105,1744351843567,-407.69691096,0.00032191,5]
[357700106,1744351843577,-2000.0,0.00032367,4]
[357700107,1744351843586,-1390.36,0.00032522,2]
[357700108,1744351843596,-205.0,0.0003257,2]
[357700109,1744351843606,-845.99,0.00032646,2]
[357700110,1744351843615,-498.85914468,0.00032776,2]
[357700111,1744351843625,-160.3903515,0.00032776,2]
[357700112,1744351843636,-500.24042982,0.00032873,5]
[357700113,1744351843645,-500.0,0.00032873,5]
[357700114,1744351843655,-500.0,0.00032873,5]
[357700115,1744351843664,-502.47933043,0.00032873,5]
[357700116,1744351843674,-606.40315939,0.00032873,5]
[357700117,1744351843683,-500.0,0.00032873,5]
[357700118,1744351843692,-503.64335539,0.00032873,5]
[357700119,1744351843702,-500.0,0.00032873,5]
[357700120,1744351843711,-345.78634457,0.00032873,5]
[357700121,1744351843723,-501.33804169,0.00032873,5]
[357700122,1744351843737,-500.44969966,0.00032873,5]
[357700123,1744351843746,-500.0,0.00032873,5]
[357700124,1744351843756,-503.78386204,0.00032873,5]
[357700125,1744351843766,-500.0,0.00032873,5]
[357700126,1744351843775,-500.0,0.00032873,5]
[357700127,1744351843785,-312.61218749,0.00032873,5]
[357700128,1744351843794,-500.0,0.00032875,2]
[357700129,1744351843805,-500.0,0.00032875,2]
[357700130,1744351843815,-609.1875,0.00032875,2]
[357700131,1744351843826,-254.61474609,0.00032875,2]
[357700132,1744351843836,-500.0,0.00032875,2]
[357700133,1744351843846,-36187.9090543,0.00032876,2]
[357700134,1744351843856,-529.66019604,0.00032876,10]
[357700135,1744351843867,-500.0,0.00032876,10]
[357700136,1744351843876,-150.301058,0.00032876,10]
[357700137,1744351843885,-2673.634111,0.00032876,10]
[357700138,1744351843896,-222.802842,0.00032876,10]
[357700139,1744351843906,-166.113358,0.00032876,10]
[357700140,1744351843915,-166.113358,0.00032876,10]
[357700141,1744351843924,-151.0,0.00032876,7]
[357700142,1744351843934,-151.0,0.00032876,7]
[357700143,1744351843943,-151.0,0.00032876,7]
[357700144,1744351843953,-153.193191,0.00032876,7]
[357700145,1744351843962,-160.120102,0.00032876,7]
[357700146,1744351843971,-500.0,0.00032876,10]
[357700147,1744351843980,-500.0,0.00032876,10]
[357700148,1744351843990,-500.0,0.00032876,10]
[357700149,1744351843998,-514.26326675,0.00032876,10]
[357700150,1744351844007,-509.57622763,0.00032876,10]
[357700151,1744351844016,-500.0,0.00032876,10]
[357700152,1744351844025,-513.54209878,0.00032876,10]
[357700153,1744351844034,-500.0,0.00032876,10]
[357700154,1744351844044,-500.0,0.00032876,10]
[357700155,1744351844053,-541.74971052,0.00032876,10]
[357700156,1744351844063,-500.0,0.00032876,10]
[357700157,1744351844072,-500.0,0.00032876,10]
[357700158,1744351844081,-500.0,0.00032876,10]
[357700159,1744351844090,-500.0,0.00032876,10]
[357700160,1744351844101,-500.0,0.00032876,10]
[357700161,1744351844110,-530.0082257,0.00032876,10]
[357700162,1744351844119,-151.0,0.00032876,7]
[357700163,1744351844129,-151.0,0.00032876,7]
[357700164,1744351844138,-151.0,0.00032876,7]
[357700165,1744351844147,-500.0,0.00032876,10]
[357700166,1744351844156,-500.0,0.00032876,10]
[357700167,1744351844165,-153.939379,0.00032876,7]
[357700168,1744351844175,-500.0,0.00032876,10]
[357700169,1744351844184,-151.0,0.00032876,7]
[357700170,1744351844193,-500.0,0.00032876,10]
[357700171,1744351844202,-151.0,0.00032876,7]
[357700172,1744351844211,-518.00561384,0.00032876,10]
[357700173,1744351844221,-500.0,0.00032876,10]
[357700174,1744351844230,-154.892766,0.00032876,7]
[357700175,1744351844239,-151.0,0.00032876,7]
[357700176,1744351844248,-500.0,0.00032876,10]
[357700177,1744351844258,-501.76099026,0.00032876,10]
[357700178,1744351844267,-996.99,0.00032876,10]
[357700179,1744351844276,-151.0,0.00032876,7]
[357700180,1744351844285,-157.226695,0.00032876,7]
[357700181,1744351844294,-502.02199177,0.00032876,10]
[357700182,1744351844303,-500.0,0.00032876,10]
[357700183,1744351844312,-643.94,0.00032876,10]
[357700184,1744351844321,-500.0,0.00032876,10]
[357700185,1744351844330,-220.76914771,0.00032876,10]
[357700186,1744351844339,-534.86518278,0.00032876,10]
[357700187,1744351844351,-500.0,0.00032876,10]
[357700188,1744351844360,-500.0,0.00032876,10]
[357700189,1744351844370,-536.50451708,0.00032876,10]
[357700190,1744351844379,-508.0799006,0.00032876,10]
[357700191,1744351844390,-151.0,0.00032876,7]
[357700192,1744351844400,-500.0,0.00032876,10]
[357700193,1744351844409,-153.514651,0.00032876,7]
[357700194,1744351844419,-500.0,0.00032876,10]
[357700195,1744351844428,-565.10111945,0.00032876,10]
[357700196,1744351844437,-500.0,0.00032876,10]
[357700197,1744351844447,-500.0,0.00032876,10]
[357700198,1744351844457,-500.0,0.00032876,10]
[357700199,1744351844467,-509.57998706,0.00032876,10]
[357700200,1744351844476,-500.0,0.00032876,10]
[357700201,1744351844486,-500.0,0.00032876,10]
[357700202,1744351844496,-151.0,0.00032876,7]
[357700203,1744351844505,-153.963009,0.00032876,7]
[357700204,1744351844515,-645.85,0.00032876,10]
[357700205,1744351844525,-500.0,0.00032876,10]
[357700206,1744351844534,-602.92460463,0.00032876,10]
[357700207,1744351844543,-500.0,0.00032876,10]
[357700208,1744351844553,-500.0,0.00032876,10]
[357700209,1744351844729,-977.21,0.00032876,10]
[357700210,1744351844740,-500.0,0.00032876,10]
[357700211,1744351844749,-500.0,0.00032876,10]
[357700212,1744351844759,-502.57325769,0.00032876,10]
[357700213,1744351844769,-534.69,0.00032876,10]
[357700214,1744351844778,-641.66967959,0.00032876,10]
[357700215,1744351844788,-500.0,0.00032876,10]
[357700216,1744351844798,-503.91204415,0.00032876,10]
[357700217,1744351844808,-593.9,0.00032876,7]
[357700218,1744351844817,-500.0,0.00032876,10]
[357700219,1744351844827,-500.0,0.00032876,10]
[357700220,1744351844836,-500.0,0.00032876,10]
[357700221,1744351844846,-500.0,0.00032876,10]
[357700222,1744351844855,-534.19132827,0.00032876,10]
[357700223,1744351844864,-500.0,0.00032876,10]
[357700224,1744351844874,-500.0,0.00032876,10]
[357700225,1744351844883,-500.0,0.00032876,10]
[357700226,1744351844892,-500.0,0.00032876,10]
[357700227,1744351844902,-500.0,0.00032876,10]